[Event "Nakhchivan Open 2022"]
[Site "Nakhchivan"]
[Date "2022.05.09"]
[Round "3.2"]
[White "Novruzov, Emin"]
[Black "Rasulov, Vugar"]
[Result "0-1"]
[ECO "D00"]
[WhiteElo "1981"]
[BlackElo "2445"]
[Annotator "TA"]
[PlyCount "66"]
[EventDate "2022.05.08"]
[EventType "swiss"]
[EventCountry "AZE"]
[SourceTitle "playchess.com"]
[Source "ChessBase"]
[SourceQuality "1"]
[TimeControl "5400+30"]

{[%evp 14,66,-22,-28,-27,-58,-51,-102,-99,-94,-87,-108,-108,-125,-121,-124,-124,-131,-97,-109,-109,-114,-103,-104,-91,-108,-75,-135,-114,-120,-101,-112,-100,-170,-170,-190,-157,-229,-152,-224,-218,-220,-174,-176,-185,-291,-290,-295,-291,-287,-284,-379,-356,-550,-531]} 1. d4 {[%emt 0:00:36]} d5 {[%emt 0:00:09]} 2. Bf4 {[%emt 0:00:15]} c5 {[%emt 0:00:20]} 3. c3 {[%emt 0:06:23]} Nc6 {[%emt 0:00:17]} 4. e3 {[%emt 0:00:28]} Nf6 {[%emt 0:00:07]} 5. Nf3 {[%emt 0:00:55]} Qb6 {[%emt 0:00:16]} 6. Qb3 {[%emt 0:00:45]} c4 {[%emt 0:00:07]} 7. Qxb6 {[%emt 0:01:08]} axb6 {[%emt 0:00:02]} 8. Na3 {[%emt 0:09:54]} Na7 {[%emt 0:00:11][%cal Oe7e5] Prevents Nb5. D02: 1 d4 d5 2 Nf3 sidelines, including 2...Nf6 3 g3 and 2...Nf6 3 Bf4.} 9. Bc7 {[%emt 0:11:36]} b5 {[%emt 0:00:10]} 10. Bb6 {[%emt 0:01:08]} (10. Be5 $1 $15) 10... e6 $17 {[%emt 0:00:55] Black is better.} 11. Nc2 {[%emt 0:02:29]} Nc6 {[%emt 0:00:21]} 12. Ne5 {[%emt 0:10:42] [#]} Bd6 $146 {[%emt 0:01:22] Against Bc7} ({Predecessor:} 12... Nd7 13. Nxd7 Bxd7 14. Bc7 Be7 15. Be2 O-O 16. Kd2 Rfc8 17. Bg3 Ra7 18. Bf3 Rca8 {1-0 (61) Saldana Caballe,J (2061)-Pique Ferrer,J (1888) Tarragona 2018}) 13. f3 {[%emt 0:31:19]} Nxe5 {[%emt 0:01:06]} 14. dxe5 {[%emt 0:00:50]} Bxe5 {[%emt 0:00:06]} 15. Bc5 {[%emt 0:00:06] Against Bd6} Nd7 {[%emt 0:00:29]} 16. Bb4 {[%emt 0:01:17]} Nb8 {[%emt 0:00:13]} 17. f4 {[%emt 0:03:49]} Bc7 {[%emt 0:00:15]} 18. Be2 {[%emt 0:03:46]} Na6 {[%emt 0:00:21]} 19. Ba3 {[%emt 0:00:33]} b6 {[%emt 0:00:09]} 20. b4 {[%emt 0:01:49]} (20. g4 $142) 20... Nb8 {[%emt 0:00:33][%cal Ba6b8,Bb8c6,Bc6e7][%mdl 32]} 21. Bc1 {[%emt 0:00:30]} Nc6 {[%emt 0:00:32]} 22. Bf3 {[%emt 0:01:38]} f5 {[%emt 0:00:33] Black is more active.} 23. Ke2 {[%emt 0:01:42]} (23. Nd4 $17 {was necessary.} Nxd4 24. exd4) 23... Bd7 $19 {[%emt 0:00:17]} 24. Bd2 {[%emt 0:01:07]} Ne7 {[%emt 0:00:30]} 25. g4 {[%emt 0:02:35]} (25. Be1 $17) 25... g6 {[%emt 0:00:27]} 26. h4 (26. g5 $17) 26... fxg4 {[%emt 0:00:20]} 27. Bxg4 {[%emt 0:00:49]} e5 {[%emt 0:00:45]} 28. Bxd7+ {[%emt 0:03:47]} Kxd7 {[%emt 0:00:03]} 29. fxe5 {[%emt 0:01:40]} (29. h5 $142) 29... Bxe5 {[%emt 0:00:04]} ({Don't blunder} 29... Nf5 $2 30. e6+ Ke7 31. Be1 $19) 30. Nd4 {[%emt 0:00:13]} Bxd4 {[%emt 0:00:18]} 31. exd4 {[%emt 0:00:12]} Nf5 {[%emt 0:00:09] [#] Strongly threatening ...Ng3+.} 32. Bf4 {[%emt 0:00:19] Prevents Ng3+.} Rhe8+ {[%emt 0:00:20]} 33. Kf3 {[%emt 0:02:06]} (33. Kd2 {is a better defense.} Re4 34. Rhf1) 33... Ra3 {[%emt 0:00:10][%csl LRc3,LRd4] White got outplayed after the opening.  Weighted Error Value: White=0.34/Black=0.12 (very precise)} 0-1

[Event "Nakhchivan Open 2022"]
[Site "Nakhchivan"]
[Date "2022.05.09"]
[Round "3.3"]
[White "Haznedaroglu, Kivanc"]
[Black "Mohammadi, Melika"]
[Result "1-0"]
[ECO "D02"]
[WhiteElo "2425"]
[BlackElo "1885"]
[Annotator "TA"]
[PlyCount "103"]
[EventDate "2022.05.08"]
[EventType "swiss"]
[EventCountry "AZE"]
[SourceTitle "playchess.com"]
[Source "ChessBase"]
[SourceQuality "1"]
[TimeControl "5400+30"]

{[%evp 19,103,0,4,0,0,0,11,-52,22,-32,-39,-70,-23,-38,-33,-48,-35,-35,0,0,14,3,86,81,81,80,76,71,116,118,118,104,145,112,130,128,183,188,176,184,267,256,350,168,265,271,399,344,393,381,470,420,416,420,476,476,472,425,440,456,445,454,393,285,1080,1018,5711,2208,5813,5813,5485,5813,5543,5477,5277,5272,6115,5185,6115,6099,4844,687,4133,2181,825,343]} 1. d4 {[%emt 0:02:22]} d5 {[%emt 0:00:12]} 2. Nf3 {[%emt 0:00:56]} Nf6 {[%emt 0:00:15]} 3. g3 {[%emt 0:00:06]} e6 {[%emt 0:00:08]} 4. Bg2 {[%emt 0:00:04]} Be7 {[%emt 0:00:10]} 5. O-O {[%emt 0:00:08]} O-O {[%emt 0:00:07]} 6. c4 {[%emt 0:00:02]} dxc4 {[%emt 0:00:06]} 7. Ne5 {[%emt 0:00:04]} Nc6 {[%emt 0:00:13]} 8. Nxc6 {[%emt 0:00:08]} bxc6 {[%emt 0:00:06]} 9. Na3 {[%emt 0:00:02]} Bxa3 {[%emt 0:00:19]} 10. bxa3 {[%emt 0:00:01]} Ba6 {[%emt 0:00:17]} 11. Qd2 {[%emt 0:00:08] E05: Open Catalan: 5 Nf3 Be7.} Rb8 {[%emt 0:03:26][%cal Oc4c3]} 12. Qa5 {[%emt 0:01:02]} Rb6 {[%emt 0:03:08]} (12... Qxd4 $2 13. Be3 Qd6 14. Qxa6 $18) 13. Rd1 {[%emt 0:00:47] [#]} (13. a4 $1 $11) 13... Nd7 $146 {[%emt 0:15:56]} ({Black should try} 13... Bb5 $15) ({Predecessor:} 13... Bb5 14. e4 Qe7 15. Bf4 Rc8 16. Qb4 Qxb4 17. axb4 Ra6 18. a3 h6 19. Rdc1 Ra4 {0-1 (53) Dounis,A (2269)-Quintiliano Pinto,R (2469) Chess.com INT 2021}) 14. e4 {[%emt 0:02:01]} ({White should play} 14. a4 $11) 14... Bb5 $15 {[%emt 0:03:35][%cal Od7c5]} 15. Qc3 {[%emt 0:07:41] [#]} Rb8 {[%emt 0:11:49]} (15... Nc5 $1 $15) 16. Bf4 {[%emt 0:01:27]} Nb6 {[%emt 0:02:05] Prevents d5.} 17. h4 {[%emt 0:12:09]} Qe7 {[%emt 0:04:07]} 18. Qa5 {[%emt 0:01:29]} Rb7 {[%emt 0:06:35]} 19. Rab1 {[%emt 0:02:49]} Na4 {[%emt 0:04:47]} 20. d5 {[%emt 0:10:13]} e5 {[%emt 0:19:09]} (20... cxd5 $11 {keeps the balance.} 21. Rxb5 Rxb5 22. Qxa4 (22. Qxb5 $2 {is the wrong capture.} Nc3 $19) 22... c6) 21. dxc6 $16 {[%emt 0:01:19] Black is on the road to losing.} Bxc6 {[%emt 0:00:13] [#] White must now prevent ...Rxb1.} 22. Rxb7 {[%emt 0:00:13]} Bxb7 {[%emt 0:00:19]} 23. Bxe5 {[%emt 0:00:14]} ({Much weaker is} 23. Qxa4 exf4 24. Qb4 c5 25. Qxc4 fxg3 26. fxg3 g6 $15) 23... Qc5 {[%emt 0:13:41]} 24. Qxa4 {[%emt 0:00:19] White is more active.} Qxe5 {[%emt 0:00:11]} 25. Qxc4 {[%emt 0:00:02]} Qe7 {[%emt 0:01:19]} 26. Qa4 {[%emt 0:01:40]} Qc5 {[%emt 0:00:26]} 27. Qb4 {[%emt 0:00:10]} Qc6 {[%emt 0:05:03]} (27... Qc2 $16 {keeps fighting.} 28. Qb3 Bxe4) 28. Qe7 $18 {[%emt 0:00:56] Threatening mate with Rd8.} h6 {[%emt 0:02:10]} 29. Rd7 {[%emt 0:00:21]} Qc1+ {[%emt 0:01:20]} (29... Qc2 {was necessary.} 30. Rxc7 Qd1+ 31. Kh2 Bc8 32. Rxa7 Be6) 30. Kh2 {[%emt 0:00:02]} Qb2 {[%emt 0:01:41]} 31. Rxc7 {[%emt 0:00:18]} (31. Rd8 $142 Rxd8 32. Qxd8+ Kh7 33. Qxc7) 31... Ba6 {[%emt 0:00:14]} (31... Bc8 $142 32. Qc5 (32. Rxa7 Be6 $16) 32... Be6 33. Qxa7 (33. Rxa7 Rc8 $14) 33... Qxa2) 32. Rxa7 {[%emt 0:00:37]} Bc4 {[%emt 0:00:09]} (32... Qb6 $142 33. Qc7 Qxc7 34. Rxc7 Rb8) 33. Qc5 {[%emt 0:01:26]} Qxa2 {[%emt 0:00:19]} 34. e5 {[%emt 0:00:16]} Rd8 {[%emt 0:00:42]} 35. Ra8 {[%emt 0:00:22]} Rxa8 {[%emt 0:00:12]} 36. Bxa8 {[%emt 0:00:02][%mdl 4096] Endgame KQB-KQB} Be6 {[%emt 0:03:10]} 37. Bc6 {[%emt 0:00:17]} Bb3 {[%emt 0:00:29]} 38. Be4 {[%emt 0:00:02][%cal Rc5c8]} g6 {[%emt 0:00:29]} 39. Kg2 {[%emt 0:00:16]} h5 {[%emt 0:00:18]} 40. Bc6 {[%emt 0:00:19]} Qe2 {[%emt 0:00:42]} 41. Qd4 {[%emt 0:02:30]} Qc2 $2 {[%emt 0:00:39]} (41... Qa6) 42. Bd5 {[%emt 0:00:35] White is clearly winning.} Bxd5+ {[%emt 0:00:40]} 43. Qxd5 {[%emt 0:00:02] And now e6 would win. KQ-KQ} Qa4 {[%emt 0:00:18]} 44. e6 {[%emt 0:01:13]} fxe6 {[%emt 0:00:30]} 45. Qxe6+ {[%emt 0:00:02]} Kg7 {[%emt 0:00:18]} 46. Qe7+ {[%emt 0:00:06]} Kg8 {[%emt 0:00:15]} 47. Qf6 {[%emt 0:00:13]} Qe4+ {[%emt 0:00:14]} 48. Kh2 {[%emt 0:00:01]} Kh7 {[%emt 0:00:25]} 49. Qf7+ {[%emt 0:00:12]} Kh8 {[%emt 0:00:11]} 50. Qa7 {[%emt 0:00:36]} (50. Qf4 $142 Qc6 51. Qf8+ Kh7 52. Qf7+ Kh8 53. Qa7) 50... Qe5 {[%emt 0:00:36]} 51. Qe3 {[%emt 0:00:29]} Qa1 {[%emt 0:00:16]} 52. Qh6+ {[%emt 0:00:06] Weighted Error Value: White=0.20 (precise) /Black=0.40} 1-0

[Event "Nakhchivan Open 2022"]
[Site "Nakhchivan"]
[Date "2022.05.09"]
[Round "3.4"]
[White "Hajiyev, Shahin"]
[Black "Mammadov, Zaur"]
[Result "0-1"]
[ECO "B13"]
[WhiteElo "1964"]
[BlackElo "2410"]
[Annotator "TA"]
[PlyCount "110"]
[EventDate "2022.05.08"]
[EventType "swiss"]
[EventCountry "AZE"]
[SourceTitle "playchess.com"]
[Source "ChessBase"]
[SourceQuality "1"]
[TimeControl "5400+30"]

{[%evp 14,110,-12,-17,-4,-28,14,-3,0,0,0,-5,0,0,6,0,2,1,23,13,33,32,27,8,15,18,25,17,6,-26,-33,-33,-44,-28,-29,-33,-47,-37,-37,-37,-25,-31,-34,-42,-13,-89,-89,-100,-89,-110,-93,-99,-99,-93,-104,-127,-118,-116,-115,-123,-103,-110,-95,-107,-78,-208,-195,-262,-266,-268,-271,-727,-736,-670,-662,-1131,-1124,-1006,-1138,-494,-481,-1962,-1962,-1962,-1962,-1935,-1935,-1896,-1896,-1889,-574,-1835,-1835,-1732,-1633,-947,-796,-29984,-29985]} 1. e4 {[%emt 0:00:12]} c6 {[%emt 0:00:11]} 2. d4 {[%emt 0:00:06]} d5 {[%emt 0:00:02]} 3. exd5 {[%emt 0:00:01]} cxd5 {[%emt 0:00:10]} 4. Bd3 {[%emt 0:00:19]} Nc6 {[%emt 0:00:02]} 5. c3 {[%emt 0:00:35]} Nf6 {[%emt 0:00:03]} 6. Bf4 {[%emt 0:00:09]} Bg4 {[%emt 0:00:23][%cal Bc8g4,Bg4h5,Bh5g6][%mdl 32]} 7. f3 {[%emt 0:00:54]} Bh5 {[%emt 0:00:07]} 8. Ne2 {[%emt 0:00:05]} e6 {[%emt 0:00:07] B13: Caro-Kann: Exchange Variation and Panov-Botvinnik Attack.} 9. O-O {[%emt 0:00:18]} Bd6 {[%emt 0:00:08]} 10. Re1 {[%emt 0:00:34]} Bg6 {[%emt 0:00:23] The position is equal.} 11. Bxd6 {[%emt 0:02:28]} Qxd6 {[%emt 0:00:01]} 12. Na3 {[%emt 0:00:01]} a6 {[%emt 0:00:45]} 13. Nc2 {[%emt 0:01:09] [#]} O-O $146 {[%emt 0:09:03]} ({Predecessor:} 13... b5 14. Ng3 Ne7 15. a4 bxa4 16. Rxa4 h5 17. Qe2 h4 18. Nf1 a5 19. Rea1 Bxd3 20. Qxd3 {0-1 (47) Howard,C (1728)-Castillo,R (1965) Bridgetwon 2013}) 14. Bxg6 {[%emt 0:00:10]} hxg6 {[%emt 0:00:09]} 15. Qd2 {[%emt 0:00:53]} b5 {[%emt 0:01:10]} 16. Nf4 {[%emt 0:03:07]} Rfc8 {[%emt 0:03:24]} 17. Nd3 {[%emt 0:00:34]} Nd7 {[%emt 0:00:17][%cal Bf6d7,Bd7b6,Bb6c4][%mdl 32]} 18. Rad1 {[%emt 0:05:00]} a5 {[%emt 0:03:57]} 19. a3 {[%emt 0:00:19]} Nb6 {[%emt 0:02:40]} 20. Qf2 {[%emt 0:04:45]} Nc4 {[%emt 0:01:19]} 21. b3 {[%emt 0:02:04]} Nb6 {[%emt 0:01:10]} (21... Nxa3 $2 22. Nxa3 b4 23. cxb4 $18 (23. Nb5 Qb8 $18)) 22. Ne3 {[%emt 0:02:53]} b4 {[%emt 0:02:18]} 23. axb4 {[%emt 0:04:15]} axb4 {[%emt 0:09:03]} 24. c4 {[%emt 0:01:52]} dxc4 {[%emt 0:08:32]} ({Don't play} 24... Nxd4 25. Nxd5 $1 {[%mdl 512]} exd5 26. Qxd4 $16) 25. bxc4 {[%emt 0:00:12][%cal Od4d5]} Qxd4 {[%emt 0:00:43]} 26. Nxb4 $1 {[%emt 0:00:46]} Qc3 {[%emt 0:01:01]} 27. Nxc6 {[%emt 0:13:42]} Rxc6 {[%emt 0:00:02]} 28. Qh4 {[%emt 0:06:34]} Qf6 {[%emt 0:00:27]} (28... Rf8 {feels hotter.} 29. h3 Qb4 30. Rb1 Qd2) 29. Qxf6 {[%emt 0:01:38]} (29. Qe4 $11 Rac8 30. Rd4) 29... gxf6 $17 {[%emt 0:00:02]} 30. Re2 {[%emt 0:00:07]} f5 {[%emt 0:00:50]} 31. g3 {[%emt 0:01:35]} Ra3 {[%emt 0:02:35]} 32. Rc1 {[%emt 0:05:15]} g5 {[%emt 0:02:58]} 33. Kf2 {[%emt 0:05:24]} Nd7 {[%emt 0:03:51]} 34. Rec2 {[%emt 0:10:56]} Ne5 {[%emt 0:01:25]} 35. Rc3 {[%emt 0:00:41]} Nd3+ {[%emt 0:00:56]} 36. Kf1 {[%emt 0:00:07]} Rca6 {[%emt 0:00:23] Black is much more active.} 37. Rxa3 {[%emt 0:01:14]} Rxa3 {[%emt 0:00:02][%mdl 4096] Endgame KRN-KRN} 38. Rc2 {[%emt 0:04:43]} Ne5 {[%emt 0:00:08]} 39. Ke2 {[%emt 0:02:14] White does not recover from this.} (39. f4 $17 gxf4 40. gxf4) 39... f4 $19 {[%emt 0:00:10]} 40. gxf4 {[%emt 0:03:06]} (40. Nd1 $142) 40... gxf4 {[%emt 0:00:34]} 41. Nd1 {[%emt 0:01:21]} Nxf3 {[%emt 0:15:12] aiming for ...Nd4+.} ({Weaker is} 41... Rxf3 42. c5 $11) 42. Rc3 $2 {[%emt 0:00:42] [#]} (42. Rc1) 42... Rxc3 $1 {[%emt 0:00:22]} ({Inferior is} 42... Nd4+ 43. Kd3 Rxc3+ 44. Nxc3 $11) 43. Nxc3 {[%emt 0:00:07]} Nxh2 {[%emt 0:00:04] KN-KN} 44. Ne4 {[%emt 0:01:22]} f3+ {[%emt 0:03:08]} 45. Kf2 {[%emt 0:05:00]} Ng4+ {[%emt 0:00:28]} 46. Kxf3 {[%emt 0:00:02]} Ne5+ {[%emt 0:00:10]} 47. Kf4 {[%emt 0:00:07]} (47. Ke3 $142 Nxc4+ 48. Kd4) 47... Nxc4 {[%emt 0:00:04]} 48. Kg5 {[%emt 0:00:42]} Kg7 {[%emt 0:00:12]} 49. Nf6 {[%emt 0:00:29]} Nb6 {[%emt 0:00:02]} 50. Nh5+ {[%emt 0:02:49]} Kf8 {[%emt 0:00:01]} 51. Kf6 {[%emt 0:00:59]} Nd7+ {[%emt 0:00:02]} 52. Kg5 {[%emt 0:00:11]} Ke7 {[%emt 0:00:01]} 53. Nf4 {[%emt 0:01:07]} Kd6 {[%emt 0:00:18]} 54. Nd3 {[%emt 0:00:30]} f6+ {[%emt 0:00:09]} 55. Kg6 {[%emt 0:00:57]} Ne5+ {[%emt 0:00:07] Weighted Error Value: White=0.49/Black=0.05 (flawless)} 0-1

[Event "Nakhchivan Open 2022"]
[Site "Nakhchivan"]
[Date "2022.05.09"]
[Round "3.5"]
[White "Shahaliyev, Ismayil"]
[Black "Israilov, Agil"]
[Result "1-0"]
[ECO "A45"]
[WhiteElo "2386"]
[BlackElo "1876"]
[Annotator "TA"]
[PlyCount "65"]
[EventDate "2022.05.08"]
[EventType "swiss"]
[EventCountry "AZE"]
[SourceTitle "playchess.com"]
[Source "ChessBase"]
[SourceQuality "1"]
[TimeControl "5400+30"]

{[%evp 9,65,-1,26,8,0,-10,0,7,1,1,12,10,25,20,20,13,18,7,7,0,16,25,27,19,27,9,24,18,16,14,30,31,23,-10,-22,0,8,12,355,349,347,324,300,279,367,363,409,406,393,398,455,439,661,662,645,639,606,589]} 1. d4 {[%emt 0:01:44]} Nf6 {[%emt 0:00:07]} 2. Nc3 {[%emt 0:00:08]} d5 {[%emt 0:00:19]} 3. Bf4 {[%emt 0:00:07]} g6 {[%emt 0:01:25]} 4. Nb5 {[%emt 0:03:43]} Na6 {[%emt 0:00:46]} 5. e3 {[%emt 0:00:44]} Bg7 {[%emt 0:03:03]} 6. Nf3 {[%emt 0:01:56] D00: 1 d4 d5: Unusual lines.} O-O {[%emt 0:01:41] 6...0-0 is better than 6...c6.} 7. h3 {[%emt 0:02:27]} c6 {[%emt 0:12:12]} (7... Ne4 {is interesting.} 8. Be2 c6 9. Na3 f6) 8. Nc3 {[%emt 0:00:32] The position is equal.} Qb6 {[%emt 0:16:57]} 9. Rb1 {[%emt 0:13:12]} Bf5 {[%emt 0:04:59]} 10. Bd3 {[%emt 0:02:52]} Bxd3 {[%emt 0:00:50]} 11. cxd3 {[%emt 0:00:02][%cal Ob2b4]} c5 {[%emt 0:18:47]} 12. Be5 {[%emt 0:00:47]} e6 {[%emt 0:03:46] [#]} 13. dxc5 $146 {[%emt 0:06:54]} ({Predecessor:} 13. O-O Nd7 14. dxc5 Naxc5 15. Bxg7 Kxg7 16. b4 Na6 17. Qa4 Qc6 18. Qb3 Nc7 19. Rfc1 {1-0 (39) Bosiocic,M (2589)-Hill,A (2192) Helsingor 2018}) 13... Nxc5 {[%emt 0:01:10]} 14. O-O {[%emt 0:05:10]} Ne8 {[%emt 0:14:09]} 15. b4 {[%emt 0:02:48] Hoping for Bxg7.} Nd7 {[%emt 0:01:09]} 16. Bxg7 {[%emt 0:00:13]} Nxg7 {[%emt 0:00:13]} 17. Qa4 {[%emt 0:02:00]} Rfd8 {[%emt 0:09:20]} 18. Rfc1 {[%emt 0:02:29]} Nf5 {[%emt 0:00:33]} 19. Qb3 {[%emt 0:04:50]} Rac8 {[%emt 0:01:49]} 20. Na4 {[%emt 0:03:18]} Qd6 {[%emt 0:00:44]} 21. e4 {[%emt 0:12:56]} (21. Nc5 $5 {[%cal Rc5b7]} Rc7 22. Qb2 $14) 21... Rxc1+ {[%emt 0:03:02]} (21... Ne7 {with more complications.} 22. Nc5 Qf4 23. exd5 Nxd5 24. Rc4 Qb8) 22. Rxc1 {[%emt 0:00:11]} dxe4 {[%emt 0:00:10]} 23. dxe4 {[%emt 0:00:07] Strongly threatening Rd1.} Nd4 $2 {[%emt 0:01:06][%mdl 8192] This costs Black the game.} (23... Ne7 $11 {and Black has nothing to worry.}) 24. Nxd4 $1 $18 {[%emt 0:01:16]} Qxd4 {[%emt 0:00:04]} 25. Rd1 {[%emt 0:00:10]} Qf6 {[%emt 0:00:29] [#]} 26. Qd3 $1 {[%emt 0:01:57] Black must now prevent Nc5.} b6 {[%emt 0:00:22] [#] Prevents Nc5.} 27. Qd6 {[%emt 0:01:29]} Kg7 {[%emt 0:02:50]} 28. Qc7 {[%emt 0:01:44]} Qe7 {[%emt 0:00:34]} 29. Nc3 {[%emt 0:03:19][%cal Ba4c3,Bc3b5,Bb5a7][%mdl 32]} Kf8 {[%emt 0:00:24]} 30. Nb5 {[%emt 0:00:27] White is clearly winning.} a6 {[%emt 0:00:39]} (30... Kg7 $142 31. Nxa7 (31. Qxa7 Nf6 $16) 31... Nf6 32. Qxd8 (32. Qxe7 Rxd1+ 33. Kh2 Rd7 $16) 32... Qxa7) 31. Na7 {[%emt 0:02:46] Threatens to win with Nc6.} Qe8 {[%emt 0:00:18]} 32. a4 {[%emt 0:00:37] Inhibits b5.} h5 {[%emt 0:00:26]} 33. b5 {[%emt 0:00:19] Weighted Error Value: White=0.05 (flawless) /Black=0.42} 1-0

[Event "Nakhchivan Open 2022"]
[Site "Nakhchivan"]
[Date "2022.05.09"]
[Round "3.6"]
[White "Yeganegi, Barad"]
[Black "Gasimov, Parviz"]
[Result "1/2-1/2"]
[ECO "D35"]
[WhiteElo "1819"]
[BlackElo "2331"]
[Annotator "TA"]
[PlyCount "77"]
[EventDate "2022.05.08"]
[EventType "swiss"]
[EventCountry "AZE"]
[SourceTitle "playchess.com"]
[Source "ChessBase"]
[SourceQuality "1"]
[TimeControl "5400+30"]

{[%evp 21,77,14,18,18,22,12,23,24,36,35,50,31,26,22,22,26,26,20,22,18,47,8,50,9,40,25,53,52,65,0,0,0,0,0,3,0,0,0,0,0,0,0,0,0,0,0,0,0,0,0,0,0,0,0,106,106,71,79]} 1. d4 {[%emt 0:00:02]} d5 {[%emt 0:03:20]} 2. c4 {[%emt 0:00:14]} e6 {[%emt 0:00:48]} 3. Nc3 {[%emt 0:00:09]} Nf6 {[%emt 0:00:30]} 4. cxd5 {[%emt 0:00:13]} exd5 {[%emt 0:00:05]} 5. Bg5 {[%emt 0:00:30]} c6 {[%emt 0:00:39]} 6. e3 {[%emt 0:00:12]} Be7 {[%emt 0:00:06]} 7. Bd3 {[%emt 0:00:14]} Nbd7 {[%emt 0:00:45]} 8. Qc2 {[%emt 0:00:17]} h6 {[%emt 0:01:20]} 9. Bh4 {[%emt 0:02:51]} Nh5 {[%emt 0:00:16]} 10. Bxe7 {[%emt 0:00:12]} Qxe7 {[%emt 0:00:06]} 11. Nge2 {[%emt 0:02:36]} Nb6 {[%emt 0:03:19]} 12. O-O {[%emt 0:04:01] D36: Queen's Gambit Declined: Exchange Variation: Main line (5 Bg5 c6 6 Qc2).} O-O {[%emt 0:02:31]} 13. Rae1 {[%emt 0:02:50]} Bd7 {[%emt 0:06:32]} 14. Nc1 {[%emt 0:17:07] White has an edge.} Rae8 {[%emt 0:04:42]} 15. Nb3 {[%emt 0:10:00]} Bc8 {[%emt 0:25:09]} 16. Nc5 {[%emt 0:06:26]} Nd7 {[%emt 0:03:39] [#]} 17. Nxd7 $146 {[%emt 0:09:42]} ({Predecessor:} 17. b4 b6 18. Nxd7 Qxd7 19. b5 Bb7 20. bxc6 Bxc6 21. Rc1 Nf6 22. a4 g6 23. a5 bxa5 {½-½ (60) Lashkin,J (2304)-Juksta,K (2310) Corum 2019}) 17... Bxd7 {[%emt 0:00:08]} 18. b4 {[%emt 0:00:37]} Nf6 {[%emt 0:04:15]} ({Resist} 18... Qxb4 19. Rb1 Qa5 20. Rxb7 $16) 19. a3 {[%emt 0:03:10]} Qd6 {[%emt 0:05:10]} 20. h3 {[%emt 0:14:19]} b5 {[%emt 0:09:31]} 21. Ne2 {[%emt 0:02:36]} Rc8 {[%emt 0:09:08][%cal Oa7a5]} 22. Ng3 {[%emt 0:03:28]} Rc7 {[%emt 0:05:41][%cal Oa7a5]} 23. Qc3 {[%emt 0:01:20]} Be6 {[%emt 0:01:42]} 24. Rc1 {[%emt 0:04:10][%cal Od3b5]} Rcc8 {[%emt 0:02:10]} 25. e4 {[%emt 0:01:15]} (25. a4 $14) 25... dxe4 $11 {[%emt 0:00:50]} 26. Nxe4 {[%emt 0:00:07]} Nxe4 {[%emt 0:00:46]} 27. Bxe4 {[%emt 0:00:01]} Bc4 {[%emt 0:00:35]} 28. Bd3 {[%emt 0:02:09]} Bd5 {[%emt 0:00:19]} 29. Rfe1 {[%emt 0:01:21]} Rfe8 {[%emt 0:03:27]} 30. Rxe8+ {[%emt 0:03:13]} Rxe8 {[%emt 0:00:01]} 31. Re1 {[%emt 0:00:20]} Re6 {[%emt 0:01:51]} 32. Bf5 {[%emt 0:04:49]} Rxe1+ {[%emt 0:00:34]} 33. Qxe1 {[%emt 0:00:01][%mdl 4096] [#] Endgame Threatens to win with Qe8+. KQB-KQB} g6 {[%emt 0:00:12]} 34. Bd3 {[%emt 0:01:25]} Kg7 {[%emt 0:01:52]} 35. Qe5+ {[%emt 0:01:02]} Qxe5 {[%emt 0:00:48]} 36. dxe5 {[%emt 0:00:00]} g5 {[%emt 0:00:02]} 37. f3 {[%emt 0:00:34]} Kf8 {[%emt 0:03:28]} (37... f6 $11) 38. Kf2 $16 {[%emt 0:00:22]} Ke7 {[%emt 0:00:01] [#]} 39. g3 $1 {[%emt 0:00:31] Weighted Error Value: White=0.07 (flawless) /Black=0.15 (very precise)} 1/2-1/2